{"text_format":"2","workbook":"xlsx","n_sheets":1,"sheets":["Sheet1"],"not_rendered":{"charts":0,"images":0,"macros":0,"external_links":0,"defined_names":0,"comments":0,"pivot_tables":0},"unopened":[],"bounds":{"document_bytes":16777216,"sheet_cells":100000,"run_cost":"one","rows_first":2000,"rows_last":500,"rows_between":2000,"halvings":0,"cell_chars":16384,"cell_head_chars":4096},"cells_cut":0,"cells_raw":0,"read":"whole","date_system":"1900"}

{"sheet":"Sheet1","index":0,"n_rows":998,"n_cols":6,"rows_kept":998,"cut":false,"hidden":false,"merged":[]}
["guest",1.0,"@","[company_name]",".com",{"$f":"CONCATENATE(A1,B1,C1,D1,E1)","v":"guest1@[company_name].com"}]
["guest",2.0,"@","[company_name]",".com","guest2@[company_name].com"]
["guest",3.0,"@","[company_name]",".com","guest3@[company_name].com"]
["guest",4.0,"@","[company_name]",".com","guest4@[company_name].com"]
["guest",5.0,"@","[company_name]",".com","guest5@[company_name].com"]
["guest",6.0,"@","[company_name]",".com","guest6@[company_name].com"]
["guest",7.0,"@","[company_name]",".com","guest7@[company_name].com"]
["guest",8.0,"@","[company_name]",".com","guest8@[company_name].com"]
["guest",9.0,"@","[company_name]",".com","guest9@[company_name].com"]
["guest",10.0,"@","[company_name]",".com","guest10@[company_name].com"]
["guest",11.0,"@","[company_name]",".com","guest11@[company_name].com"]
["guest",12.0,"@","[company_name]",".com","guest12@[company_name].com"]
["guest",13.0,"@","[company_name]",".com","guest13@[company_name].com"]
["guest",14.0,"@","[company_name]",".com","guest14@[company_name].com"]
["guest",15.0,"@","[company_name]",".com","guest15@[company_name].com"]
["guest",16.0,"@","[company_name]",".com","guest16@[company_name].com"]
["guest",17.0,"@","[company_name]",".com","guest17@[company_name].com"]
["guest",18.0,"@","[company_name]",".com","guest18@[company_name].com"]
["guest",19.0,"@","[company_name]",".com","guest19@[company_name].com"]
["guest",20.0,"@","[company_name]",".com","guest20@[company_name].com"]
["guest",21.0,"@","[company_name]",".com","guest21@[company_name].com"]
["guest",22.0,"@","[company_name]",".com","guest22@[company_name].com"]
["guest",23.0,"@","[company_name]",".com","guest23@[company_name].com"]
["guest",24.0,"@","[company_name]",".com","guest24@[company_name].com"]
["guest",25.0,"@","[company_name]",".com","guest25@[company_name].com"]
["guest",26.0,"@","[company_name]",".com","guest26@[company_name].com"]
["guest",27.0,"@","[company_name]",".com","guest27@[company_name].com"]
["guest",28.0,"@","[company_name]",".com","guest28@[company_name].com"]
["guest",29.0,"@","[company_name]",".com","guest29@[company_name].com"]
["guest",30.0,"@","[company_name]",".com","guest30@[company_name].com"]
["guest",31.0,"@","[company_name]",".com","guest31@[company_name].com"]
["guest",32.0,"@","[company_name]",".com","guest32@[company_name].com"]
["guest",33.0,"@","[company_name]",".com","guest33@[company_name].com"]
["guest",34.0,"@","[company_name]",".com","guest34@[company_name].com"]
["guest",35.0,"@","[company_name]",".com","guest35@[company_name].com"]
["guest",36.0,"@","[company_name]",".com","guest36@[company_name].com"]
["guest",37.0,"@","[company_name]",".com","guest37@[company_name].com"]
["guest",38.0,"@","[company_name]",".com","guest38@[company_name].com"]
["guest",39.0,"@","[company_name]",".com","guest39@[company_name].com"]
["guest",40.0,"@","[company_name]",".com","guest40@[company_name].com"]
["guest",41.0,"@","[company_name]",".com","guest41@[company_name].com"]
["guest",42.0,"@","[company_name]",".com","guest42@[company_name].com"]
["guest",43.0,"@","[company_name]",".com","guest43@[company_name].com"]
["guest",44.0,"@","[company_name]",".com","guest44@[company_name].com"]
["guest",45.0,"@","[company_name]",".com","guest45@[company_name].com"]
["guest",46.0,"@","[company_name]",".com","guest46@[company_name].com"]
["guest",47.0,"@","[company_name]",".com","guest47@[company_name].com"]
["guest",48.0,"@","[company_name]",".com","guest48@[company_name].com"]
["guest",49.0,"@","[company_name]",".com","guest49@[company_name].com"]
["guest",50.0,"@","[company_name]",".com","guest50@[company_name].com"]
["guest",51.0,"@","[company_name]",".com","guest51@[company_name].com"]
["guest",52.0,"@","[company_name]",".com","guest52@[company_name].com"]
["guest",53.0,"@","[company_name]",".com","guest53@[company_name].com"]
["guest",54.0,"@","[company_name]",".com","guest54@[company_name].com"]
["guest",55.0,"@","[company_name]",".com","guest55@[company_name].com"]
["guest",56.0,"@","[company_name]",".com","guest56@[company_name].com"]
["guest",57.0,"@","[company_name]",".com","guest57@[company_name].com"]
["guest",58.0,"@","[company_name]",".com","guest58@[company_name].com"]
["guest",59.0,"@","[company_name]",".com","guest59@[company_name].com"]
["guest",60.0,"@","[company_name]",".com","guest60@[company_name].com"]
["guest",61.0,"@","[company_name]",".com","guest61@[company_name].com"]
["guest",62.0,"@","[company_name]",".com","guest62@[company_name].com"]
["guest",63.0,"@","[company_name]",".com","guest63@[company_name].com"]
["guest",64.0,"@","[company_name]",".com","guest64@[company_name].com"]
["guest",65.0,"@","[company_name]",".com","guest65@[company_name].com"]
["guest",66.0,"@","[company_name]",".com","guest66@[company_name].com"]
["guest",67.0,"@","[company_name]",".com","guest67@[company_name].com"]
["guest",68.0,"@","[company_name]",".com","guest68@[company_name].com"]
["guest",69.0,"@","[company_name]",".com","guest69@[company_name].com"]
["guest",70.0,"@","[company_name]",".com","guest70@[company_name].com"]
["guest",71.0,"@","[company_name]",".com","guest71@[company_name].com"]
["guest",72.0,"@","[company_name]",".com","guest72@[company_name].com"]
["guest",73.0,"@","[company_name]",".com","guest73@[company_name].com"]
["guest",74.0,"@","[company_name]",".com","guest74@[company_name].com"]
["guest",75.0,"@","[company_name]",".com","guest75@[company_name].com"]
["guest",76.0,"@","[company_name]",".com","guest76@[company_name].com"]
["guest",77.0,"@","[company_name]",".com","guest77@[company_name].com"]
["guest",78.0,"@","[company_name]",".com","guest78@[company_name].com"]
["guest",79.0,"@","[company_name]",".com","guest79@[company_name].com"]
["guest",80.0,"@","[company_name]",".com","guest80@[company_name].com"]
["guest",81.0,"@","[company_name]",".com","guest81@[company_name].com"]
["guest",82.0,"@","[company_name]",".com","guest82@[company_name].com"]
["guest",83.0,"@","[company_name]",".com","guest83@[company_name].com"]
["guest",84.0,"@","[company_name]",".com","guest84@[company_name].com"]
["guest",85.0,"@","[company_name]",".com","guest85@[company_name].com"]
["guest",86.0,"@","[company_name]",".com","guest86@[company_name].com"]
["guest",87.0,"@","[company_name]",".com","guest87@[company_name].com"]
["guest",88.0,"@","[company_name]",".com","guest88@[company_name].com"]
["guest",89.0,"@","[company_name]",".com","guest89@[company_name].com"]
["guest",90.0,"@","[company_name]",".com","guest90@[company_name].com"]
["guest",91.0,"@","[company_name]",".com","guest91@[company_name].com"]
["guest",92.0,"@","[company_name]",".com","guest92@[company_name].com"]
["guest",93.0,"@","[company_name]",".com","guest93@[company_name].com"]
["guest",94.0,"@","[company_name]",".com","guest94@[company_name].com"]
["guest",95.0,"@","[company_name]",".com","guest95@[company_name].com"]
["guest",96.0,"@","[company_name]",".com","guest96@[company_name].com"]
["guest",97.0,"@","[company_name]",".com","guest97@[company_name].com"]
["guest",98.0,"@","[company_name]",".com","guest98@[company_name].com"]
["guest",99.0,"@","[company_name]",".com","guest99@[company_name].com"]
["guest",100.0,"@","[company_name]",".com","guest100@[company_name].com"]
["guest",101.0,"@","[company_name]",".com","guest101@[company_name].com"]
["guest",102.0,"@","[company_name]",".com","guest102@[company_name].com"]
["guest",103.0,"@","[company_name]",".com","guest103@[company_name].com"]
["guest",104.0,"@","[company_name]",".com","guest104@[company_name].com"]
["guest",105.0,"@","[company_name]",".com","guest105@[company_name].com"]
["guest",106.0,"@","[company_name]",".com","guest106@[company_name].com"]
["guest",107.0,"@","[company_name]",".com","guest107@[company_name].com"]
["guest",108.0,"@","[company_name]",".com","guest108@[company_name].com"]
["guest",109.0,"@","[company_name]",".com","guest109@[company_name].com"]
["guest",110.0,"@","[company_name]",".com","guest110@[company_name].com"]
["guest",111.0,"@","[company_name]",".com","guest111@[company_name].com"]
["guest",112.0,"@","[company_name]",".com","guest112@[company_name].com"]
["guest",113.0,"@","[company_name]",".com","guest113@[company_name].com"]
["guest",114.0,"@","[company_name]",".com","guest114@[company_name].com"]
["guest",115.0,"@","[company_name]",".com","guest115@[company_name].com"]
["guest",116.0,"@","[company_name]",".com","guest116@[company_name].com"]
["guest",117.0,"@","[company_name]",".com","guest117@[company_name].com"]
["guest",118.0,"@","[company_name]",".com","guest118@[company_name].com"]
["guest",119.0,"@","[company_name]",".com","guest119@[company_name].com"]
["guest",120.0,"@","[company_name]",".com","guest120@[company_name].com"]
["guest",121.0,"@","[company_name]",".com","guest121@[company_name].com"]
["guest",122.0,"@","[company_name]",".com","guest122@[company_name].com"]
["guest",123.0,"@","[company_name]",".com","guest123@[company_name].com"]
["guest",124.0,"@","[company_name]",".com","guest124@[company_name].com"]
["guest",125.0,"@","[company_name]",".com","guest125@[company_name].com"]
["guest",126.0,"@","[company_name]",".com","guest126@[company_name].com"]
["guest",127.0,"@","[company_name]",".com","guest127@[company_name].com"]
["guest",128.0,"@","[company_name]",".com","guest128@[company_name].com"]
["guest",129.0,"@","[company_name]",".com","guest129@[company_name].com"]
["guest",130.0,"@","[company_name]",".com","guest130@[company_name].com"]
["guest",131.0,"@","[company_name]",".com","guest131@[company_name].com"]
["guest",132.0,"@","[company_name]",".com","guest132@[company_name].com"]
["guest",133.0,"@","[company_name]",".com","guest133@[company_name].com"]
["guest",134.0,"@","[company_name]",".com","guest134@[company_name].com"]
["guest",135.0,"@","[company_name]",".com","guest135@[company_name].com"]
["guest",136.0,"@","[company_name]",".com","guest136@[company_name].com"]
["guest",137.0,"@","[company_name]",".com","guest137@[company_name].com"]
["guest",138.0,"@","[company_name]",".com","guest138@[company_name].com"]
["guest",139.0,"@","[company_name]",".com","guest139@[company_name].com"]
["guest",140.0,"@","[company_name]",".com","guest140@[company_name].com"]
["guest",141.0,"@","[company_name]",".com","guest141@[company_name].com"]
["guest",142.0,"@","[company_name]",".com","guest142@[company_name].com"]
["guest",143.0,"@","[company_name]",".com","guest143@[company_name].com"]
["guest",144.0,"@","[company_name]",".com","guest144@[company_name].com"]
["guest",145.0,"@","[company_name]",".com","guest145@[company_name].com"]
["guest",146.0,"@","[company_name]",".com","guest146@[company_name].com"]
["guest",147.0,"@","[company_name]",".com","guest147@[company_name].com"]
["guest",148.0,"@","[company_name]",".com","guest148@[company_name].com"]
["guest",149.0,"@","[company_name]",".com","guest149@[company_name].com"]
["guest",150.0,"@","[company_name]",".com","guest150@[company_name].com"]
["guest",151.0,"@","[company_name]",".com","guest151@[company_name].com"]
["guest",152.0,"@","[company_name]",".com","guest152@[company_name].com"]
["guest",153.0,"@","[company_name]",".com","guest153@[company_name].com"]
["guest",154.0,"@","[company_name]",".com","guest154@[company_name].com"]
["guest",155.0,"@","[company_name]",".com","guest155@[company_name].com"]
["guest",156.0,"@","[company_name]",".com","guest156@[company_name].com"]
["guest",157.0,"@","[company_name]",".com","guest157@[company_name].com"]
["guest",158.0,"@","[company_name]",".com","guest158@[company_name].com"]
["guest",159.0,"@","[company_name]",".com","guest159@[company_name].com"]
["guest",160.0,"@","[company_name]",".com","guest160@[company_name].com"]
["guest",161.0,"@","[company_name]",".com","guest161@[company_name].com"]
["guest",162.0,"@","[company_name]",".com","guest162@[company_name].com"]
["guest",163.0,"@","[company_name]",".com","guest163@[company_name].com"]
["guest",164.0,"@","[company_name]",".com","guest164@[company_name].com"]
["guest",165.0,"@","[company_name]",".com","guest165@[company_name].com"]
["guest",166.0,"@","[company_name]",".com","guest166@[company_name].com"]
["guest",167.0,"@","[company_name]",".com","guest167@[company_name].com"]
["guest",168.0,"@","[company_name]",".com","guest168@[company_name].com"]
["guest",169.0,"@","[company_name]",".com","guest169@[company_name].com"]
["guest",170.0,"@","[company_name]",".com","guest170@[company_name].com"]
["guest",171.0,"@","[company_name]",".com","guest171@[company_name].com"]
["guest",172.0,"@","[company_name]",".com","guest172@[company_name].com"]
["guest",173.0,"@","[company_name]",".com","guest173@[company_name].com"]
["guest",174.0,"@","[company_name]",".com","guest174@[company_name].com"]
["guest",175.0,"@","[company_name]",".com","guest175@[company_name].com"]
["guest",176.0,"@","[company_name]",".com","guest176@[company_name].com"]
["guest",177.0,"@","[company_name]",".com","guest177@[company_name].com"]
["guest",178.0,"@","[company_name]",".com","guest178@[company_name].com"]
["guest",179.0,"@","[company_name]",".com","guest179@[company_name].com"]
["guest",180.0,"@","[company_name]",".com","guest180@[company_name].com"]
["guest",181.0,"@","[company_name]",".com","guest181@[company_name].com"]
["guest",182.0,"@","[company_name]",".com","guest182@[company_name].com"]
["guest",183.0,"@","[company_name]",".com","guest183@[company_name].com"]
["guest",184.0,"@","[company_name]",".com","guest184@[company_name].com"]
["guest",185.0,"@","[company_name]",".com","guest185@[company_name].com"]
["guest",186.0,"@","[company_name]",".com","guest186@[company_name].com"]
["guest",187.0,"@","[company_name]",".com","guest187@[company_name].com"]
["guest",188.0,"@","[company_name]",".com","guest188@[company_name].com"]
["guest",189.0,"@","[company_name]",".com","guest189@[company_name].com"]
["guest",190.0,"@","[company_name]",".com","guest190@[company_name].com"]
["guest",191.0,"@","[company_name]",".com","guest191@[company_name].com"]
["guest",192.0,"@","[company_name]",".com","guest192@[company_name].com"]
["guest",193.0,"@","[company_name]",".com","guest193@[company_name].com"]
["guest",194.0,"@","[company_name]",".com","guest194@[company_name].com"]
["guest",195.0,"@","[company_name]",".com","guest195@[company_name].com"]
["guest",196.0,"@","[company_name]",".com","guest196@[company_name].com"]
["guest",197.0,"@","[company_name]",".com","guest197@[company_name].com"]
["guest",198.0,"@","[company_name]",".com","guest198@[company_name].com"]
["guest",199.0,"@","[company_name]",".com","guest199@[company_name].com"]
["guest",200.0,"@","[company_name]",".com","guest200@[company_name].com"]
["guest",201.0,"@","[company_name]",".com","guest201@[company_name].com"]
["guest",202.0,"@","[company_name]",".com","guest202@[company_name].com"]
["guest",203.0,"@","[company_name]",".com","guest203@[company_name].com"]
["guest",204.0,"@","[company_name]",".com","guest204@[company_name].com"]
["guest",205.0,"@","[company_name]",".com","guest205@[company_name].com"]
["guest",206.0,"@","[company_name]",".com","guest206@[company_name].com"]
["guest",207.0,"@","[company_name]",".com","guest207@[company_name].com"]
["guest",208.0,"@","[company_name]",".com","guest208@[company_name].com"]
["guest",209.0,"@","[company_name]",".com","guest209@[company_name].com"]
["guest",210.0,"@","[company_name]",".com","guest210@[company_name].com"]
["guest",211.0,"@","[company_name]",".com","guest211@[company_name].com"]
["guest",212.0,"@","[company_name]",".com","guest212@[company_name].com"]
["guest",213.0,"@","[company_name]",".com","guest213@[company_name].com"]
["guest",214.0,"@","[company_name]",".com","guest214@[company_name].com"]
["guest",215.0,"@","[company_name]",".com","guest215@[company_name].com"]
["guest",216.0,"@","[company_name]",".com","guest216@[company_name].com"]
["guest",217.0,"@","[company_name]",".com","guest217@[company_name].com"]
["guest",218.0,"@","[company_name]",".com","guest218@[company_name].com"]
["guest",219.0,"@","[company_name]",".com","guest219@[company_name].com"]
["guest",220.0,"@","[company_name]",".com","guest220@[company_name].com"]
["guest",221.0,"@","[company_name]",".com","guest221@[company_name].com"]
["guest",222.0,"@","[company_name]",".com","guest222@[company_name].com"]
["guest",223.0,"@","[company_name]",".com","guest223@[company_name].com"]
["guest",224.0,"@","[company_name]",".com","guest224@[company_name].com"]
["guest",225.0,"@","[company_name]",".com","guest225@[company_name].com"]
["guest",226.0,"@","[company_name]",".com","guest226@[company_name].com"]
["guest",227.0,"@","[company_name]",".com","guest227@[company_name].com"]
["guest",228.0,"@","[company_name]",".com","guest228@[company_name].com"]
["guest",229.0,"@","[company_name]",".com","guest229@[company_name].com"]
["guest",230.0,"@","[company_name]",".com","guest230@[company_name].com"]
["guest",231.0,"@","[company_name]",".com","guest231@[company_name].com"]
["guest",232.0,"@","[company_name]",".com","guest232@[company_name].com"]
["guest",233.0,"@","[company_name]",".com","guest233@[company_name].com"]
["guest",234.0,"@","[company_name]",".com","guest234@[company_name].com"]
["guest",235.0,"@","[company_name]",".com","guest235@[company_name].com"]
["guest",236.0,"@","[company_name]",".com","guest236@[company_name].com"]
["guest",237.0,"@","[company_name]",".com","guest237@[company_name].com"]
["guest",238.0,"@","[company_name]",".com","guest238@[company_name].com"]
["guest",239.0,"@","[company_name]",".com","guest239@[company_name].com"]
["guest",240.0,"@","[company_name]",".com","guest240@[company_name].com"]
["guest",241.0,"@","[company_name]",".com","guest241@[company_name].com"]
["guest",242.0,"@","[company_name]",".com","guest242@[company_name].com"]
["guest",243.0,"@","[company_name]",".com","guest243@[company_name].com"]
["guest",244.0,"@","[company_name]",".com","guest244@[company_name].com"]
["guest",245.0,"@","[company_name]",".com","guest245@[company_name].com"]
["guest",246.0,"@","[company_name]",".com","guest246@[company_name].com"]
["guest",247.0,"@","[company_name]",".com","guest247@[company_name].com"]
["guest",248.0,"@","[company_name]",".com","guest248@[company_name].com"]
["guest",249.0,"@","[company_name]",".com","guest249@[company_name].com"]
["guest",250.0,"@","[company_name]",".com","guest250@[company_name].com"]
["guest",251.0,"@","[company_name]",".com","guest251@[company_name].com"]
["guest",252.0,"@","[company_name]",".com","guest252@[company_name].com"]
["guest",253.0,"@","[company_name]",".com","guest253@[company_name].com"]
["guest",254.0,"@","[company_name]",".com","guest254@[company_name].com"]
["guest",255.0,"@","[company_name]",".com","guest255@[company_name].com"]
["guest",256.0,"@","[company_name]",".com","guest256@[company_name].com"]
["guest",257.0,"@","[company_name]",".com","guest257@[company_name].com"]
["guest",258.0,"@","[company_name]",".com","guest258@[company_name].com"]
["guest",259.0,"@","[company_name]",".com","guest259@[company_name].com"]
["guest",260.0,"@","[company_name]",".com","guest260@[company_name].com"]
["guest",261.0,"@","[company_name]",".com","guest261@[company_name].com"]
["guest",262.0,"@","[company_name]",".com","guest262@[company_name].com"]
["guest",263.0,"@","[company_name]",".com","guest263@[company_name].com"]
["guest",264.0,"@","[company_name]",".com","guest264@[company_name].com"]
["guest",265.0,"@","[company_name]",".com","guest265@[company_name].com"]
["guest",266.0,"@","[company_name]",".com","guest266@[company_name].com"]
["guest",267.0,"@","[company_name]",".com","guest267@[company_name].com"]
["guest",268.0,"@","[company_name]",".com","guest268@[company_name].com"]
["guest",269.0,"@","[company_name]",".com","guest269@[company_name].com"]
["guest",270.0,"@","[company_name]",".com","guest270@[company_name].com"]
["guest",271.0,"@","[company_name]",".com","guest271@[company_name].com"]
["guest",272.0,"@","[company_name]",".com","guest272@[company_name].com"]
["guest",273.0,"@","[company_name]",".com","guest273@[company_name].com"]
["guest",274.0,"@","[company_name]",".com","guest274@[company_name].com"]
["guest",275.0,"@","[company_name]",".com","guest275@[company_name].com"]
["guest",276.0,"@","[company_name]",".com","guest276@[company_name].com"]
["guest",277.0,"@","[company_name]",".com","guest277@[company_name].com"]
["guest",278.0,"@","[company_name]",".com","guest278@[company_name].com"]
["guest",279.0,"@","[company_name]",".com","guest279@[company_name].com"]
["guest",280.0,"@","[company_name]",".com","guest280@[company_name].com"]
["guest",281.0,"@","[company_name]",".com","guest281@[company_name].com"]
["guest",282.0,"@","[company_name]",".com","guest282@[company_name].com"]
["guest",283.0,"@","[company_name]",".com","guest283@[company_name].com"]
["guest",284.0,"@","[company_name]",".com","guest284@[company_name].com"]
["guest",285.0,"@","[company_name]",".com","guest285@[company_name].com"]
["guest",286.0,"@","[company_name]",".com","guest286@[company_name].com"]
["guest",287.0,"@","[company_name]",".com","guest287@[company_name].com"]
["guest",288.0,"@","[company_name]",".com","guest288@[company_name].com"]
["guest",289.0,"@","[company_name]",".com","guest289@[company_name].com"]
["guest",290.0,"@","[company_name]",".com","guest290@[company_name].com"]
["guest",291.0,"@","[company_name]",".com","guest291@[company_name].com"]
["guest",292.0,"@","[company_name]",".com","guest292@[company_name].com"]
["guest",293.0,"@","[company_name]",".com","guest293@[company_name].com"]
["guest",294.0,"@","[company_name]",".com","guest294@[company_name].com"]
["guest",295.0,"@","[company_name]",".com","guest295@[company_name].com"]
["guest",296.0,"@","[company_name]",".com","guest296@[company_name].com"]
["guest",297.0,"@","[company_name]",".com","guest297@[company_name].com"]
["guest",298.0,"@","[company_name]",".com","guest298@[company_name].com"]
["guest",299.0,"@","[company_name]",".com","guest299@[company_name].com"]
["guest",300.0,"@","[company_name]",".com","guest300@[company_name].com"]
["guest",301.0,"@","[company_name]",".com","guest301@[company_name].com"]
["guest",302.0,"@","[company_name]",".com","guest302@[company_name].com"]
["guest",303.0,"@","[company_name]",".com","guest303@[company_name].com"]
["guest",304.0,"@","[company_name]",".com","guest304@[company_name].com"]
["guest",305.0,"@","[company_name]",".com","guest305@[company_name].com"]
["guest",306.0,"@","[company_name]",".com","guest306@[company_name].com"]
["guest",307.0,"@","[company_name]",".com","guest307@[company_name].com"]
["guest",308.0,"@","[company_name]",".com","guest308@[company_name].com"]
["guest",309.0,"@","[company_name]",".com","guest309@[company_name].com"]
["guest",310.0,"@","[company_name]",".com","guest310@[company_name].com"]
["guest",311.0,"@","[company_name]",".com","guest311@[company_name].com"]
["guest",312.0,"@","[company_name]",".com","guest312@[company_name].com"]
["guest",313.0,"@","[company_name]",".com","guest313@[company_name].com"]
["guest",314.0,"@","[company_name]",".com","guest314@[company_name].com"]
["guest",315.0,"@","[company_name]",".com","guest315@[company_name].com"]
["guest",316.0,"@","[company_name]",".com","guest316@[company_name].com"]
["guest",317.0,"@","[company_name]",".com","guest317@[company_name].com"]
["guest",318.0,"@","[company_name]",".com","guest318@[company_name].com"]
["guest",319.0,"@","[company_name]",".com","guest319@[company_name].com"]
["guest",320.0,"@","[company_name]",".com","guest320@[company_name].com"]
["guest",321.0,"@","[company_name]",".com","guest321@[company_name].com"]
["guest",322.0,"@","[company_name]",".com","guest322@[company_name].com"]
["guest",323.0,"@","[company_name]",".com","guest323@[company_name].com"]
["guest",324.0,"@","[company_name]",".com","guest324@[company_name].com"]
["guest",325.0,"@","[company_name]",".com","guest325@[company_name].com"]
["guest",326.0,"@","[company_name]",".com","guest326@[company_name].com"]
["guest",327.0,"@","[company_name]",".com","guest327@[company_name].com"]
["guest",328.0,"@","[company_name]",".com","guest328@[company_name].com"]
["guest",329.0,"@","[company_name]",".com","guest329@[company_name].com"]
["guest",330.0,"@","[company_name]",".com","guest330@[company_name].com"]
["guest",331.0,"@","[company_name]",".com","guest331@[company_name].com"]
["guest",332.0,"@","[company_name]",".com","guest332@[company_name].com"]
["guest",333.0,"@","[company_name]",".com","guest333@[company_name].com"]
["guest",334.0,"@","[company_name]",".com","guest334@[company_name].com"]
["guest",335.0,"@","[company_name]",".com","guest335@[company_name].com"]
["guest",336.0,"@","[company_name]",".com","guest336@[company_name].com"]
["guest",337.0,"@","[company_name]",".com","guest337@[company_name].com"]
["guest",338.0,"@","[company_name]",".com","guest338@[company_name].com"]
["guest",339.0,"@","[company_name]",".com","guest339@[company_name].com"]
["guest",340.0,"@","[company_name]",".com","guest340@[company_name].com"]
["guest",341.0,"@","[company_name]",".com","guest341@[company_name].com"]
["guest",342.0,"@","[company_name]",".com","guest342@[company_name].com"]
["guest",343.0,"@","[company_name]",".com","guest343@[company_name].com"]
["guest",344.0,"@","[company_name]",".com","guest344@[company_name].com"]
["guest",345.0,"@","[company_name]",".com","guest345@[company_name].com"]
["guest",346.0,"@","[company_name]",".com","guest346@[company_name].com"]
["guest",347.0,"@","[company_name]",".com","guest347@[company_name].com"]
["guest",348.0,"@","[company_name]",".com","guest348@[company_name].com"]
["guest",349.0,"@","[company_name]",".com","guest349@[company_name].com"]
["guest",350.0,"@","[company_name]",".com","guest350@[company_name].com"]
["guest",351.0,"@","[company_name]",".com","guest351@[company_name].com"]
["guest",352.0,"@","[company_name]",".com","guest352@[company_name].com"]
["guest",353.0,"@","[company_name]",".com","guest353@[company_name].com"]
["guest",354.0,"@","[company_name]",".com","guest354@[company_name].com"]
["guest",355.0,"@","[company_name]",".com","guest355@[company_name].com"]
["guest",356.0,"@","[company_name]",".com","guest356@[company_name].com"]
["guest",357.0,"@","[company_name]",".com","guest357@[company_name].com"]
["guest",358.0,"@","[company_name]",".com","guest358@[company_name].com"]
["guest",359.0,"@","[company_name]",".com","guest359@[company_name].com"]
["guest",360.0,"@","[company_name]",".com","guest360@[company_name].com"]
["guest",361.0,"@","[company_name]",".com","guest361@[company_name].com"]
["guest",362.0,"@","[company_name]",".com","guest362@[company_name].com"]
["guest",363.0,"@","[company_name]",".com","guest363@[company_name].com"]
["guest",364.0,"@","[company_name]",".com","guest364@[company_name].com"]
["guest",365.0,"@","[company_name]",".com","guest365@[company_name].com"]
["guest",366.0,"@","[company_name]",".com","guest366@[company_name].com"]
["guest",367.0,"@","[company_name]",".com","guest367@[company_name].com"]
["guest",368.0,"@","[company_name]",".com","guest368@[company_name].com"]
["guest",369.0,"@","[company_name]",".com","guest369@[company_name].com"]
["guest",370.0,"@","[company_name]",".com","guest370@[company_name].com"]
["guest",371.0,"@","[company_name]",".com","guest371@[company_name].com"]
["guest",372.0,"@","[company_name]",".com","guest372@[company_name].com"]
["guest",373.0,"@","[company_name]",".com","guest373@[company_name].com"]
["guest",374.0,"@","[company_name]",".com","guest374@[company_name].com"]
["guest",375.0,"@","[company_name]",".com","guest375@[company_name].com"]
["guest",376.0,"@","[company_name]",".com","guest376@[company_name].com"]
["guest",377.0,"@","[company_name]",".com","guest377@[company_name].com"]
["guest",378.0,"@","[company_name]",".com","guest378@[company_name].com"]
["guest",379.0,"@","[company_name]",".com","guest379@[company_name].com"]
["guest",380.0,"@","[company_name]",".com","guest380@[company_name].com"]
["guest",381.0,"@","[company_name]",".com","guest381@[company_name].com"]
["guest",382.0,"@","[company_name]",".com","guest382@[company_name].com"]
["guest",383.0,"@","[company_name]",".com","guest383@[company_name].com"]
["guest",384.0,"@","[company_name]",".com","guest384@[company_name].com"]
["guest",385.0,"@","[company_name]",".com","guest385@[company_name].com"]
["guest",386.0,"@","[company_name]",".com","guest386@[company_name].com"]
["guest",387.0,"@","[company_name]",".com","guest387@[company_name].com"]
["guest",388.0,"@","[company_name]",".com","guest388@[company_name].com"]
["guest",389.0,"@","[company_name]",".com","guest389@[company_name].com"]
["guest",390.0,"@","[company_name]",".com","guest390@[company_name].com"]
["guest",391.0,"@","[company_name]",".com","guest391@[company_name].com"]
["guest",392.0,"@","[company_name]",".com","guest392@[company_name].com"]
["guest",393.0,"@","[company_name]",".com","guest393@[company_name].com"]
["guest",394.0,"@","[company_name]",".com","guest394@[company_name].com"]
["guest",395.0,"@","[company_name]",".com","guest395@[company_name].com"]
["guest",396.0,"@","[company_name]",".com","guest396@[company_name].com"]
["guest",397.0,"@","[company_name]",".com","guest397@[company_name].com"]
["guest",398.0,"@","[company_name]",".com","guest398@[company_name].com"]
["guest",399.0,"@","[company_name]",".com","guest399@[company_name].com"]
["guest",400.0,"@","[company_name]",".com","guest400@[company_name].com"]
["guest",401.0,"@","[company_name]",".com","guest401@[company_name].com"]
["guest",402.0,"@","[company_name]",".com","guest402@[company_name].com"]
["guest",403.0,"@","[company_name]",".com","guest403@[company_name].com"]
["guest",404.0,"@","[company_name]",".com","guest404@[company_name].com"]
["guest",405.0,"@","[company_name]",".com","guest405@[company_name].com"]
["guest",406.0,"@","[company_name]",".com","guest406@[company_name].com"]
["guest",407.0,"@","[company_name]",".com","guest407@[company_name].com"]
["guest",408.0,"@","[company_name]",".com","guest408@[company_name].com"]
["guest",409.0,"@","[company_name]",".com","guest409@[company_name].com"]
["guest",410.0,"@","[company_name]",".com","guest410@[company_name].com"]
["guest",411.0,"@","[company_name]",".com","guest411@[company_name].com"]
["guest",412.0,"@","[company_name]",".com","guest412@[company_name].com"]
["guest",413.0,"@","[company_name]",".com","guest413@[company_name].com"]
["guest",414.0,"@","[company_name]",".com","guest414@[company_name].com"]
["guest",415.0,"@","[company_name]",".com","guest415@[company_name].com"]
["guest",416.0,"@","[company_name]",".com","guest416@[company_name].com"]
["guest",417.0,"@","[company_name]",".com","guest417@[company_name].com"]
["guest",418.0,"@","[company_name]",".com","guest418@[company_name].com"]
["guest",419.0,"@","[company_name]",".com","guest419@[company_name].com"]
["guest",420.0,"@","[company_name]",".com","guest420@[company_name].com"]
["guest",421.0,"@","[company_name]",".com","guest421@[company_name].com"]
["guest",422.0,"@","[company_name]",".com","guest422@[company_name].com"]
["guest",423.0,"@","[company_name]",".com","guest423@[company_name].com"]
["guest",424.0,"@","[company_name]",".com","guest424@[company_name].com"]
["guest",425.0,"@","[company_name]",".com","guest425@[company_name].com"]
["guest",426.0,"@","[company_name]",".com","guest426@[company_name].com"]
["guest",427.0,"@","[company_name]",".com","guest427@[company_name].com"]
["guest",428.0,"@","[company_name]",".com","guest428@[company_name].com"]
["guest",429.0,"@","[company_name]",".com","guest429@[company_name].com"]
["guest",430.0,"@","[company_name]",".com","guest430@[company_name].com"]
["guest",431.0,"@","[company_name]",".com","guest431@[company_name].com"]
["guest",432.0,"@","[company_name]",".com","guest432@[company_name].com"]
["guest",433.0,"@","[company_name]",".com","guest433@[company_name].com"]
["guest",434.0,"@","[company_name]",".com","guest434@[company_name].com"]
["guest",435.0,"@","[company_name]",".com","guest435@[company_name].com"]
["guest",436.0,"@","[company_name]",".com","guest436@[company_name].com"]
["guest",437.0,"@","[company_name]",".com","guest437@[company_name].com"]
["guest",438.0,"@","[company_name]",".com","guest438@[company_name].com"]
["guest",439.0,"@","[company_name]",".com","guest439@[company_name].com"]
["guest",440.0,"@","[company_name]",".com","guest440@[company_name].com"]
["guest",441.0,"@","[company_name]",".com","guest441@[company_name].com"]
["guest",442.0,"@","[company_name]",".com","guest442@[company_name].com"]
["guest",443.0,"@","[company_name]",".com","guest443@[company_name].com"]
["guest",444.0,"@","[company_name]",".com","guest444@[company_name].com"]
["guest",445.0,"@","[company_name]",".com","guest445@[company_name].com"]
["guest",446.0,"@","[company_name]",".com","guest446@[company_name].com"]
["guest",447.0,"@","[company_name]",".com","guest447@[company_name].com"]
["guest",448.0,"@","[company_name]",".com","guest448@[company_name].com"]
["guest",449.0,"@","[company_name]",".com","guest449@[company_name].com"]
["guest",450.0,"@","[company_name]",".com","guest450@[company_name].com"]
["guest",451.0,"@","[company_name]",".com","guest451@[company_name].com"]
["guest",452.0,"@","[company_name]",".com","guest452@[company_name].com"]
["guest",453.0,"@","[company_name]",".com","guest453@[company_name].com"]
["guest",454.0,"@","[company_name]",".com","guest454@[company_name].com"]
["guest",455.0,"@","[company_name]",".com","guest455@[company_name].com"]
["guest",456.0,"@","[company_name]",".com","guest456@[company_name].com"]
["guest",457.0,"@","[company_name]",".com","guest457@[company_name].com"]
["guest",458.0,"@","[company_name]",".com","guest458@[company_name].com"]
["guest",459.0,"@","[company_name]",".com","guest459@[company_name].com"]
["guest",460.0,"@","[company_name]",".com","guest460@[company_name].com"]
["guest",461.0,"@","[company_name]",".com","guest461@[company_name].com"]
["guest",462.0,"@","[company_name]",".com","guest462@[company_name].com"]
["guest",463.0,"@","[company_name]",".com","guest463@[company_name].com"]
["guest",464.0,"@","[company_name]",".com","guest464@[company_name].com"]
["guest",465.0,"@","[company_name]",".com","guest465@[company_name].com"]
["guest",466.0,"@","[company_name]",".com","guest466@[company_name].com"]
["guest",467.0,"@","[company_name]",".com","guest467@[company_name].com"]
["guest",468.0,"@","[company_name]",".com","guest468@[company_name].com"]
["guest",469.0,"@","[company_name]",".com","guest469@[company_name].com"]
["guest",470.0,"@","[company_name]",".com","guest470@[company_name].com"]
["guest",471.0,"@","[company_name]",".com","guest471@[company_name].com"]
["guest",472.0,"@","[company_name]",".com","guest472@[company_name].com"]
["guest",473.0,"@","[company_name]",".com","guest473@[company_name].com"]
["guest",474.0,"@","[company_name]",".com","guest474@[company_name].com"]
["guest",475.0,"@","[company_name]",".com","guest475@[company_name].com"]
["guest",476.0,"@","[company_name]",".com","guest476@[company_name].com"]
["guest",477.0,"@","[company_name]",".com","guest477@[company_name].com"]
["guest",478.0,"@","[company_name]",".com","guest478@[company_name].com"]
["guest",479.0,"@","[company_name]",".com","guest479@[company_name].com"]
["guest",480.0,"@","[company_name]",".com","guest480@[company_name].com"]
["guest",481.0,"@","[company_name]",".com","guest481@[company_name].com"]
["guest",482.0,"@","[company_name]",".com","guest482@[company_name].com"]
["guest",483.0,"@","[company_name]",".com","guest483@[company_name].com"]
["guest",484.0,"@","[company_name]",".com","guest484@[company_name].com"]
["guest",485.0,"@","[company_name]",".com","guest485@[company_name].com"]
["guest",486.0,"@","[company_name]",".com","guest486@[company_name].com"]
["guest",487.0,"@","[company_name]",".com","guest487@[company_name].com"]
["guest",488.0,"@","[company_name]",".com","guest488@[company_name].com"]
["guest",489.0,"@","[company_name]",".com","guest489@[company_name].com"]
["guest",490.0,"@","[company_name]",".com","guest490@[company_name].com"]
["guest",491.0,"@","[company_name]",".com","guest491@[company_name].com"]
["guest",492.0,"@","[company_name]",".com","guest492@[company_name].com"]
["guest",493.0,"@","[company_name]",".com","guest493@[company_name].com"]
["guest",494.0,"@","[company_name]",".com","guest494@[company_name].com"]
["guest",495.0,"@","[company_name]",".com","guest495@[company_name].com"]
["guest",496.0,"@","[company_name]",".com","guest496@[company_name].com"]
["guest",497.0,"@","[company_name]",".com","guest497@[company_name].com"]
["guest",498.0,"@","[company_name]",".com","guest498@[company_name].com"]
["guest",499.0,"@","[company_name]",".com","guest499@[company_name].com"]
["guest",500.0,"@","[company_name]",".com","guest500@[company_name].com"]
["guest",501.0,"@","[company_name]",".com","guest501@[company_name].com"]
["guest",502.0,"@","[company_name]",".com","guest502@[company_name].com"]
["guest",503.0,"@","[company_name]",".com","guest503@[company_name].com"]
["guest",504.0,"@","[company_name]",".com","guest504@[company_name].com"]
["guest",505.0,"@","[company_name]",".com","guest505@[company_name].com"]
["guest",506.0,"@","[company_name]",".com","guest506@[company_name].com"]
["guest",507.0,"@","[company_name]",".com","guest507@[company_name].com"]
["guest",508.0,"@","[company_name]",".com","guest508@[company_name].com"]
["guest",509.0,"@","[company_name]",".com","guest509@[company_name].com"]
["guest",510.0,"@","[company_name]",".com","guest510@[company_name].com"]
["guest",511.0,"@","[company_name]",".com","guest511@[company_name].com"]
["guest",512.0,"@","[company_name]",".com","guest512@[company_name].com"]
["guest",513.0,"@","[company_name]",".com","guest513@[company_name].com"]
["guest",514.0,"@","[company_name]",".com","guest514@[company_name].com"]
["guest",515.0,"@","[company_name]",".com","guest515@[company_name].com"]
["guest",516.0,"@","[company_name]",".com","guest516@[company_name].com"]
["guest",517.0,"@","[company_name]",".com","guest517@[company_name].com"]
["guest",518.0,"@","[company_name]",".com","guest518@[company_name].com"]
["guest",519.0,"@","[company_name]",".com","guest519@[company_name].com"]
["guest",520.0,"@","[company_name]",".com","guest520@[company_name].com"]
["guest",521.0,"@","[company_name]",".com","guest521@[company_name].com"]
["guest",522.0,"@","[company_name]",".com","guest522@[company_name].com"]
["guest",523.0,"@","[company_name]",".com","guest523@[company_name].com"]
["guest",524.0,"@","[company_name]",".com","guest524@[company_name].com"]
["guest",525.0,"@","[company_name]",".com","guest525@[company_name].com"]
["guest",526.0,"@","[company_name]",".com","guest526@[company_name].com"]
["guest",527.0,"@","[company_name]",".com","guest527@[company_name].com"]
["guest",528.0,"@","[company_name]",".com","guest528@[company_name].com"]
["guest",529.0,"@","[company_name]",".com","guest529@[company_name].com"]
["guest",530.0,"@","[company_name]",".com","guest530@[company_name].com"]
["guest",531.0,"@","[company_name]",".com","guest531@[company_name].com"]
["guest",532.0,"@","[company_name]",".com","guest532@[company_name].com"]
["guest",533.0,"@","[company_name]",".com","guest533@[company_name].com"]
["guest",534.0,"@","[company_name]",".com","guest534@[company_name].com"]
["guest",535.0,"@","[company_name]",".com","guest535@[company_name].com"]
["guest",536.0,"@","[company_name]",".com","guest536@[company_name].com"]
["guest",537.0,"@","[company_name]",".com","guest537@[company_name].com"]
["guest",538.0,"@","[company_name]",".com","guest538@[company_name].com"]
["guest",539.0,"@","[company_name]",".com","guest539@[company_name].com"]
["guest",540.0,"@","[company_name]",".com","guest540@[company_name].com"]
["guest",541.0,"@","[company_name]",".com","guest541@[company_name].com"]
["guest",542.0,"@","[company_name]",".com","guest542@[company_name].com"]
["guest",543.0,"@","[company_name]",".com","guest543@[company_name].com"]
["guest",544.0,"@","[company_name]",".com","guest544@[company_name].com"]
["guest",545.0,"@","[company_name]",".com","guest545@[company_name].com"]
["guest",546.0,"@","[company_name]",".com","guest546@[company_name].com"]
["guest",547.0,"@","[company_name]",".com","guest547@[company_name].com"]
["guest",548.0,"@","[company_name]",".com","guest548@[company_name].com"]
["guest",549.0,"@","[company_name]",".com","guest549@[company_name].com"]
["guest",550.0,"@","[company_name]",".com","guest550@[company_name].com"]
["guest",551.0,"@","[company_name]",".com","guest551@[company_name].com"]
["guest",552.0,"@","[company_name]",".com","guest552@[company_name].com"]
["guest",553.0,"@","[company_name]",".com","guest553@[company_name].com"]
["guest",554.0,"@","[company_name]",".com","guest554@[company_name].com"]
["guest",555.0,"@","[company_name]",".com","guest555@[company_name].com"]
["guest",556.0,"@","[company_name]",".com","guest556@[company_name].com"]
["guest",557.0,"@","[company_name]",".com","guest557@[company_name].com"]
["guest",558.0,"@","[company_name]",".com","guest558@[company_name].com"]
["guest",559.0,"@","[company_name]",".com","guest559@[company_name].com"]
["guest",560.0,"@","[company_name]",".com","guest560@[company_name].com"]
["guest",561.0,"@","[company_name]",".com","guest561@[company_name].com"]
["guest",562.0,"@","[company_name]",".com","guest562@[company_name].com"]
["guest",563.0,"@","[company_name]",".com","guest563@[company_name].com"]
["guest",564.0,"@","[company_name]",".com","guest564@[company_name].com"]
["guest",565.0,"@","[company_name]",".com","guest565@[company_name].com"]
["guest",566.0,"@","[company_name]",".com","guest566@[company_name].com"]
["guest",567.0,"@","[company_name]",".com","guest567@[company_name].com"]
["guest",568.0,"@","[company_name]",".com","guest568@[company_name].com"]
["guest",569.0,"@","[company_name]",".com","guest569@[company_name].com"]
["guest",570.0,"@","[company_name]",".com","guest570@[company_name].com"]
["guest",571.0,"@","[company_name]",".com","guest571@[company_name].com"]
["guest",572.0,"@","[company_name]",".com","guest572@[company_name].com"]
["guest",573.0,"@","[company_name]",".com","guest573@[company_name].com"]
["guest",574.0,"@","[company_name]",".com","guest574@[company_name].com"]
["guest",575.0,"@","[company_name]",".com","guest575@[company_name].com"]
["guest",576.0,"@","[company_name]",".com","guest576@[company_name].com"]
["guest",577.0,"@","[company_name]",".com","guest577@[company_name].com"]
["guest",578.0,"@","[company_name]",".com","guest578@[company_name].com"]
["guest",579.0,"@","[company_name]",".com","guest579@[company_name].com"]
["guest",580.0,"@","[company_name]",".com","guest580@[company_name].com"]
["guest",581.0,"@","[company_name]",".com","guest581@[company_name].com"]
["guest",582.0,"@","[company_name]",".com","guest582@[company_name].com"]
["guest",583.0,"@","[company_name]",".com","guest583@[company_name].com"]
["guest",584.0,"@","[company_name]",".com","guest584@[company_name].com"]
["guest",585.0,"@","[company_name]",".com","guest585@[company_name].com"]
["guest",586.0,"@","[company_name]",".com","guest586@[company_name].com"]
["guest",587.0,"@","[company_name]",".com","guest587@[company_name].com"]
["guest",588.0,"@","[company_name]",".com","guest588@[company_name].com"]
["guest",589.0,"@","[company_name]",".com","guest589@[company_name].com"]
["guest",590.0,"@","[company_name]",".com","guest590@[company_name].com"]
["guest",591.0,"@","[company_name]",".com","guest591@[company_name].com"]
["guest",592.0,"@","[company_name]",".com","guest592@[company_name].com"]
["guest",593.0,"@","[company_name]",".com","guest593@[company_name].com"]
["guest",594.0,"@","[company_name]",".com","guest594@[company_name].com"]
["guest",595.0,"@","[company_name]",".com","guest595@[company_name].com"]
["guest",596.0,"@","[company_name]",".com","guest596@[company_name].com"]
["guest",597.0,"@","[company_name]",".com","guest597@[company_name].com"]
["guest",598.0,"@","[company_name]",".com","guest598@[company_name].com"]
["guest",599.0,"@","[company_name]",".com","guest599@[company_name].com"]
["guest",600.0,"@","[company_name]",".com","guest600@[company_name].com"]
["guest",601.0,"@","[company_name]",".com","guest601@[company_name].com"]
["guest",602.0,"@","[company_name]",".com","guest602@[company_name].com"]
["guest",603.0,"@","[company_name]",".com","guest603@[company_name].com"]
["guest",604.0,"@","[company_name]",".com","guest604@[company_name].com"]
["guest",605.0,"@","[company_name]",".com","guest605@[company_name].com"]
["guest",606.0,"@","[company_name]",".com","guest606@[company_name].com"]
["guest",607.0,"@","[company_name]",".com","guest607@[company_name].com"]
["guest",608.0,"@","[company_name]",".com","guest608@[company_name].com"]
["guest",609.0,"@","[company_name]",".com","guest609@[company_name].com"]
["guest",610.0,"@","[company_name]",".com","guest610@[company_name].com"]
["guest",611.0,"@","[company_name]",".com","guest611@[company_name].com"]
["guest",612.0,"@","[company_name]",".com","guest612@[company_name].com"]
["guest",613.0,"@","[company_name]",".com","guest613@[company_name].com"]
["guest",614.0,"@","[company_name]",".com","guest614@[company_name].com"]
["guest",615.0,"@","[company_name]",".com","guest615@[company_name].com"]
["guest",616.0,"@","[company_name]",".com","guest616@[company_name].com"]
["guest",617.0,"@","[company_name]",".com","guest617@[company_name].com"]
["guest",618.0,"@","[company_name]",".com","guest618@[company_name].com"]
["guest",619.0,"@","[company_name]",".com","guest619@[company_name].com"]
["guest",620.0,"@","[company_name]",".com","guest620@[company_name].com"]
["guest",621.0,"@","[company_name]",".com","guest621@[company_name].com"]
["guest",622.0,"@","[company_name]",".com","guest622@[company_name].com"]
["guest",623.0,"@","[company_name]",".com","guest623@[company_name].com"]
["guest",624.0,"@","[company_name]",".com","guest624@[company_name].com"]
["guest",625.0,"@","[company_name]",".com","guest625@[company_name].com"]
["guest",626.0,"@","[company_name]",".com","guest626@[company_name].com"]
["guest",627.0,"@","[company_name]",".com","guest627@[company_name].com"]
["guest",628.0,"@","[company_name]",".com","guest628@[company_name].com"]
["guest",629.0,"@","[company_name]",".com","guest629@[company_name].com"]
["guest",630.0,"@","[company_name]",".com","guest630@[company_name].com"]
["guest",631.0,"@","[company_name]",".com","guest631@[company_name].com"]
["guest",632.0,"@","[company_name]",".com","guest632@[company_name].com"]
["guest",633.0,"@","[company_name]",".com","guest633@[company_name].com"]
["guest",634.0,"@","[company_name]",".com","guest634@[company_name].com"]
["guest",635.0,"@","[company_name]",".com","guest635@[company_name].com"]
["guest",636.0,"@","[company_name]",".com","guest636@[company_name].com"]
["guest",637.0,"@","[company_name]",".com","guest637@[company_name].com"]
["guest",638.0,"@","[company_name]",".com","guest638@[company_name].com"]
["guest",639.0,"@","[company_name]",".com","guest639@[company_name].com"]
["guest",640.0,"@","[company_name]",".com","guest640@[company_name].com"]
["guest",641.0,"@","[company_name]",".com","guest641@[company_name].com"]
["guest",642.0,"@","[company_name]",".com","guest642@[company_name].com"]
["guest",643.0,"@","[company_name]",".com","guest643@[company_name].com"]
["guest",644.0,"@","[company_name]",".com","guest644@[company_name].com"]
["guest",645.0,"@","[company_name]",".com","guest645@[company_name].com"]
["guest",646.0,"@","[company_name]",".com","guest646@[company_name].com"]
["guest",647.0,"@","[company_name]",".com","guest647@[company_name].com"]
["guest",648.0,"@","[company_name]",".com","guest648@[company_name].com"]
["guest",649.0,"@","[company_name]",".com","guest649@[company_name].com"]
["guest",650.0,"@","[company_name]",".com","guest650@[company_name].com"]
["guest",651.0,"@","[company_name]",".com","guest651@[company_name].com"]
["guest",652.0,"@","[company_name]",".com","guest652@[company_name].com"]
["guest",653.0,"@","[company_name]",".com","guest653@[company_name].com"]
["guest",654.0,"@","[company_name]",".com","guest654@[company_name].com"]
["guest",655.0,"@","[company_name]",".com","guest655@[company_name].com"]
["guest",656.0,"@","[company_name]",".com","guest656@[company_name].com"]
["guest",657.0,"@","[company_name]",".com","guest657@[company_name].com"]
["guest",658.0,"@","[company_name]",".com","guest658@[company_name].com"]
["guest",659.0,"@","[company_name]",".com","guest659@[company_name].com"]
["guest",660.0,"@","[company_name]",".com","guest660@[company_name].com"]
["guest",661.0,"@","[company_name]",".com","guest661@[company_name].com"]
["guest",662.0,"@","[company_name]",".com","guest662@[company_name].com"]
["guest",663.0,"@","[company_name]",".com","guest663@[company_name].com"]
["guest",664.0,"@","[company_name]",".com","guest664@[company_name].com"]
["guest",665.0,"@","[company_name]",".com","guest665@[company_name].com"]
["guest",666.0,"@","[company_name]",".com","guest666@[company_name].com"]
["guest",667.0,"@","[company_name]",".com","guest667@[company_name].com"]
["guest",668.0,"@","[company_name]",".com","guest668@[company_name].com"]
["guest",669.0,"@","[company_name]",".com","guest669@[company_name].com"]
["guest",670.0,"@","[company_name]",".com","guest670@[company_name].com"]
["guest",671.0,"@","[company_name]",".com","guest671@[company_name].com"]
["guest",672.0,"@","[company_name]",".com","guest672@[company_name].com"]
["guest",673.0,"@","[company_name]",".com","guest673@[company_name].com"]
["guest",674.0,"@","[company_name]",".com","guest674@[company_name].com"]
["guest",675.0,"@","[company_name]",".com","guest675@[company_name].com"]
["guest",676.0,"@","[company_name]",".com","guest676@[company_name].com"]
["guest",677.0,"@","[company_name]",".com","guest677@[company_name].com"]
["guest",678.0,"@","[company_name]",".com","guest678@[company_name].com"]
["guest",679.0,"@","[company_name]",".com","guest679@[company_name].com"]
["guest",680.0,"@","[company_name]",".com","guest680@[company_name].com"]
["guest",681.0,"@","[company_name]",".com","guest681@[company_name].com"]
["guest",682.0,"@","[company_name]",".com","guest682@[company_name].com"]
["guest",683.0,"@","[company_name]",".com","guest683@[company_name].com"]
["guest",684.0,"@","[company_name]",".com","guest684@[company_name].com"]
["guest",685.0,"@","[company_name]",".com","guest685@[company_name].com"]
["guest",686.0,"@","[company_name]",".com","guest686@[company_name].com"]
["guest",687.0,"@","[company_name]",".com","guest687@[company_name].com"]
["guest",688.0,"@","[company_name]",".com","guest688@[company_name].com"]
["guest",689.0,"@","[company_name]",".com","guest689@[company_name].com"]
["guest",690.0,"@","[company_name]",".com","guest690@[company_name].com"]
["guest",691.0,"@","[company_name]",".com","guest691@[company_name].com"]
["guest",692.0,"@","[company_name]",".com","guest692@[company_name].com"]
["guest",693.0,"@","[company_name]",".com","guest693@[company_name].com"]
["guest",694.0,"@","[company_name]",".com","guest694@[company_name].com"]
["guest",695.0,"@","[company_name]",".com","guest695@[company_name].com"]
["guest",696.0,"@","[company_name]",".com","guest696@[company_name].com"]
["guest",697.0,"@","[company_name]",".com","guest697@[company_name].com"]
["guest",698.0,"@","[company_name]",".com","guest698@[company_name].com"]
["guest",699.0,"@","[company_name]",".com","guest699@[company_name].com"]
["guest",700.0,"@","[company_name]",".com","guest700@[company_name].com"]
["guest",701.0,"@","[company_name]",".com","guest701@[company_name].com"]
["guest",702.0,"@","[company_name]",".com","guest702@[company_name].com"]
["guest",703.0,"@","[company_name]",".com","guest703@[company_name].com"]
["guest",704.0,"@","[company_name]",".com","guest704@[company_name].com"]
["guest",705.0,"@","[company_name]",".com","guest705@[company_name].com"]
["guest",706.0,"@","[company_name]",".com","guest706@[company_name].com"]
["guest",707.0,"@","[company_name]",".com","guest707@[company_name].com"]
["guest",708.0,"@","[company_name]",".com","guest708@[company_name].com"]
["guest",709.0,"@","[company_name]",".com","guest709@[company_name].com"]
["guest",710.0,"@","[company_name]",".com","guest710@[company_name].com"]
["guest",711.0,"@","[company_name]",".com","guest711@[company_name].com"]
["guest",712.0,"@","[company_name]",".com","guest712@[company_name].com"]
["guest",713.0,"@","[company_name]",".com","guest713@[company_name].com"]
["guest",714.0,"@","[company_name]",".com","guest714@[company_name].com"]
["guest",715.0,"@","[company_name]",".com","guest715@[company_name].com"]
["guest",716.0,"@","[company_name]",".com","guest716@[company_name].com"]
["guest",717.0,"@","[company_name]",".com","guest717@[company_name].com"]
["guest",718.0,"@","[company_name]",".com","guest718@[company_name].com"]
["guest",719.0,"@","[company_name]",".com","guest719@[company_name].com"]
["guest",720.0,"@","[company_name]",".com","guest720@[company_name].com"]
["guest",721.0,"@","[company_name]",".com","guest721@[company_name].com"]
["guest",722.0,"@","[company_name]",".com","guest722@[company_name].com"]
["guest",723.0,"@","[company_name]",".com","guest723@[company_name].com"]
["guest",724.0,"@","[company_name]",".com","guest724@[company_name].com"]
["guest",725.0,"@","[company_name]",".com","guest725@[company_name].com"]
["guest",726.0,"@","[company_name]",".com","guest726@[company_name].com"]
["guest",727.0,"@","[company_name]",".com","guest727@[company_name].com"]
["guest",728.0,"@","[company_name]",".com","guest728@[company_name].com"]
["guest",729.0,"@","[company_name]",".com","guest729@[company_name].com"]
["guest",730.0,"@","[company_name]",".com","guest730@[company_name].com"]
["guest",731.0,"@","[company_name]",".com","guest731@[company_name].com"]
["guest",732.0,"@","[company_name]",".com","guest732@[company_name].com"]
["guest",733.0,"@","[company_name]",".com","guest733@[company_name].com"]
["guest",734.0,"@","[company_name]",".com","guest734@[company_name].com"]
["guest",735.0,"@","[company_name]",".com","guest735@[company_name].com"]
["guest",736.0,"@","[company_name]",".com","guest736@[company_name].com"]
["guest",737.0,"@","[company_name]",".com","guest737@[company_name].com"]
["guest",738.0,"@","[company_name]",".com","guest738@[company_name].com"]
["guest",739.0,"@","[company_name]",".com","guest739@[company_name].com"]
["guest",740.0,"@","[company_name]",".com","guest740@[company_name].com"]
["guest",741.0,"@","[company_name]",".com","guest741@[company_name].com"]
["guest",742.0,"@","[company_name]",".com","guest742@[company_name].com"]
["guest",743.0,"@","[company_name]",".com","guest743@[company_name].com"]
["guest",744.0,"@","[company_name]",".com","guest744@[company_name].com"]
["guest",745.0,"@","[company_name]",".com","guest745@[company_name].com"]
["guest",746.0,"@","[company_name]",".com","guest746@[company_name].com"]
["guest",747.0,"@","[company_name]",".com","guest747@[company_name].com"]
["guest",748.0,"@","[company_name]",".com","guest748@[company_name].com"]
["guest",749.0,"@","[company_name]",".com","guest749@[company_name].com"]
["guest",750.0,"@","[company_name]",".com","guest750@[company_name].com"]
["guest",751.0,"@","[company_name]",".com","guest751@[company_name].com"]
["guest",752.0,"@","[company_name]",".com","guest752@[company_name].com"]
["guest",753.0,"@","[company_name]",".com","guest753@[company_name].com"]
["guest",754.0,"@","[company_name]",".com","guest754@[company_name].com"]
["guest",755.0,"@","[company_name]",".com","guest755@[company_name].com"]
["guest",756.0,"@","[company_name]",".com","guest756@[company_name].com"]
["guest",757.0,"@","[company_name]",".com","guest757@[company_name].com"]
["guest",758.0,"@","[company_name]",".com","guest758@[company_name].com"]
["guest",759.0,"@","[company_name]",".com","guest759@[company_name].com"]
["guest",760.0,"@","[company_name]",".com","guest760@[company_name].com"]
["guest",761.0,"@","[company_name]",".com","guest761@[company_name].com"]
["guest",762.0,"@","[company_name]",".com","guest762@[company_name].com"]
["guest",763.0,"@","[company_name]",".com","guest763@[company_name].com"]
["guest",764.0,"@","[company_name]",".com","guest764@[company_name].com"]
["guest",765.0,"@","[company_name]",".com","guest765@[company_name].com"]
["guest",766.0,"@","[company_name]",".com","guest766@[company_name].com"]
["guest",767.0,"@","[company_name]",".com","guest767@[company_name].com"]
["guest",768.0,"@","[company_name]",".com","guest768@[company_name].com"]
["guest",769.0,"@","[company_name]",".com","guest769@[company_name].com"]
["guest",770.0,"@","[company_name]",".com","guest770@[company_name].com"]
["guest",771.0,"@","[company_name]",".com","guest771@[company_name].com"]
["guest",772.0,"@","[company_name]",".com","guest772@[company_name].com"]
["guest",773.0,"@","[company_name]",".com","guest773@[company_name].com"]
["guest",774.0,"@","[company_name]",".com","guest774@[company_name].com"]
["guest",775.0,"@","[company_name]",".com","guest775@[company_name].com"]
["guest",776.0,"@","[company_name]",".com","guest776@[company_name].com"]
["guest",777.0,"@","[company_name]",".com","guest777@[company_name].com"]
["guest",778.0,"@","[company_name]",".com","guest778@[company_name].com"]
["guest",779.0,"@","[company_name]",".com","guest779@[company_name].com"]
["guest",780.0,"@","[company_name]",".com","guest780@[company_name].com"]
["guest",781.0,"@","[company_name]",".com","guest781@[company_name].com"]
["guest",782.0,"@","[company_name]",".com","guest782@[company_name].com"]
["guest",783.0,"@","[company_name]",".com","guest783@[company_name].com"]
["guest",784.0,"@","[company_name]",".com","guest784@[company_name].com"]
["guest",785.0,"@","[company_name]",".com","guest785@[company_name].com"]
["guest",786.0,"@","[company_name]",".com","guest786@[company_name].com"]
["guest",787.0,"@","[company_name]",".com","guest787@[company_name].com"]
["guest",788.0,"@","[company_name]",".com","guest788@[company_name].com"]
["guest",789.0,"@","[company_name]",".com","guest789@[company_name].com"]
["guest",790.0,"@","[company_name]",".com","guest790@[company_name].com"]
["guest",791.0,"@","[company_name]",".com","guest791@[company_name].com"]
["guest",792.0,"@","[company_name]",".com","guest792@[company_name].com"]
["guest",793.0,"@","[company_name]",".com","guest793@[company_name].com"]
["guest",794.0,"@","[company_name]",".com","guest794@[company_name].com"]
["guest",795.0,"@","[company_name]",".com","guest795@[company_name].com"]
["guest",796.0,"@","[company_name]",".com","guest796@[company_name].com"]
["guest",797.0,"@","[company_name]",".com","guest797@[company_name].com"]
["guest",798.0,"@","[company_name]",".com","guest798@[company_name].com"]
["guest",799.0,"@","[company_name]",".com","guest799@[company_name].com"]
["guest",800.0,"@","[company_name]",".com","guest800@[company_name].com"]
["guest",801.0,"@","[company_name]",".com","guest801@[company_name].com"]
["guest",802.0,"@","[company_name]",".com","guest802@[company_name].com"]
["guest",803.0,"@","[company_name]",".com","guest803@[company_name].com"]
["guest",804.0,"@","[company_name]",".com","guest804@[company_name].com"]
["guest",805.0,"@","[company_name]",".com","guest805@[company_name].com"]
["guest",806.0,"@","[company_name]",".com","guest806@[company_name].com"]
["guest",807.0,"@","[company_name]",".com","guest807@[company_name].com"]
["guest",808.0,"@","[company_name]",".com","guest808@[company_name].com"]
["guest",809.0,"@","[company_name]",".com","guest809@[company_name].com"]
["guest",810.0,"@","[company_name]",".com","guest810@[company_name].com"]
["guest",811.0,"@","[company_name]",".com","guest811@[company_name].com"]
["guest",812.0,"@","[company_name]",".com","guest812@[company_name].com"]
["guest",813.0,"@","[company_name]",".com","guest813@[company_name].com"]
["guest",814.0,"@","[company_name]",".com","guest814@[company_name].com"]
["guest",815.0,"@","[company_name]",".com","guest815@[company_name].com"]
["guest",816.0,"@","[company_name]",".com","guest816@[company_name].com"]
["guest",817.0,"@","[company_name]",".com","guest817@[company_name].com"]
["guest",818.0,"@","[company_name]",".com","guest818@[company_name].com"]
["guest",819.0,"@","[company_name]",".com","guest819@[company_name].com"]
["guest",820.0,"@","[company_name]",".com","guest820@[company_name].com"]
["guest",821.0,"@","[company_name]",".com","guest821@[company_name].com"]
["guest",822.0,"@","[company_name]",".com","guest822@[company_name].com"]
["guest",823.0,"@","[company_name]",".com","guest823@[company_name].com"]
["guest",824.0,"@","[company_name]",".com","guest824@[company_name].com"]
["guest",825.0,"@","[company_name]",".com","guest825@[company_name].com"]
["guest",826.0,"@","[company_name]",".com","guest826@[company_name].com"]
["guest",827.0,"@","[company_name]",".com","guest827@[company_name].com"]
["guest",828.0,"@","[company_name]",".com","guest828@[company_name].com"]
["guest",829.0,"@","[company_name]",".com","guest829@[company_name].com"]
["guest",830.0,"@","[company_name]",".com","guest830@[company_name].com"]
["guest",831.0,"@","[company_name]",".com","guest831@[company_name].com"]
["guest",832.0,"@","[company_name]",".com","guest832@[company_name].com"]
["guest",833.0,"@","[company_name]",".com","guest833@[company_name].com"]
["guest",834.0,"@","[company_name]",".com","guest834@[company_name].com"]
["guest",835.0,"@","[company_name]",".com","guest835@[company_name].com"]
["guest",836.0,"@","[company_name]",".com","guest836@[company_name].com"]
["guest",837.0,"@","[company_name]",".com","guest837@[company_name].com"]
["guest",838.0,"@","[company_name]",".com","guest838@[company_name].com"]
["guest",839.0,"@","[company_name]",".com","guest839@[company_name].com"]
["guest",840.0,"@","[company_name]",".com","guest840@[company_name].com"]
["guest",841.0,"@","[company_name]",".com","guest841@[company_name].com"]
["guest",842.0,"@","[company_name]",".com","guest842@[company_name].com"]
["guest",843.0,"@","[company_name]",".com","guest843@[company_name].com"]
["guest",844.0,"@","[company_name]",".com","guest844@[company_name].com"]
["guest",845.0,"@","[company_name]",".com","guest845@[company_name].com"]
["guest",846.0,"@","[company_name]",".com","guest846@[company_name].com"]
["guest",847.0,"@","[company_name]",".com","guest847@[company_name].com"]
["guest",848.0,"@","[company_name]",".com","guest848@[company_name].com"]
["guest",849.0,"@","[company_name]",".com","guest849@[company_name].com"]
["guest",850.0,"@","[company_name]",".com","guest850@[company_name].com"]
["guest",851.0,"@","[company_name]",".com","guest851@[company_name].com"]
["guest",852.0,"@","[company_name]",".com","guest852@[company_name].com"]
["guest",853.0,"@","[company_name]",".com","guest853@[company_name].com"]
["guest",854.0,"@","[company_name]",".com","guest854@[company_name].com"]
["guest",855.0,"@","[company_name]",".com","guest855@[company_name].com"]
["guest",856.0,"@","[company_name]",".com","guest856@[company_name].com"]
["guest",857.0,"@","[company_name]",".com","guest857@[company_name].com"]
["guest",858.0,"@","[company_name]",".com","guest858@[company_name].com"]
["guest",859.0,"@","[company_name]",".com","guest859@[company_name].com"]
["guest",860.0,"@","[company_name]",".com","guest860@[company_name].com"]
["guest",861.0,"@","[company_name]",".com","guest861@[company_name].com"]
["guest",862.0,"@","[company_name]",".com","guest862@[company_name].com"]
["guest",863.0,"@","[company_name]",".com","guest863@[company_name].com"]
["guest",864.0,"@","[company_name]",".com","guest864@[company_name].com"]
["guest",865.0,"@","[company_name]",".com","guest865@[company_name].com"]
["guest",866.0,"@","[company_name]",".com","guest866@[company_name].com"]
["guest",867.0,"@","[company_name]",".com","guest867@[company_name].com"]
["guest",868.0,"@","[company_name]",".com","guest868@[company_name].com"]
["guest",869.0,"@","[company_name]",".com","guest869@[company_name].com"]
["guest",870.0,"@","[company_name]",".com","guest870@[company_name].com"]
["guest",871.0,"@","[company_name]",".com","guest871@[company_name].com"]
["guest",872.0,"@","[company_name]",".com","guest872@[company_name].com"]
["guest",873.0,"@","[company_name]",".com","guest873@[company_name].com"]
["guest",874.0,"@","[company_name]",".com","guest874@[company_name].com"]
["guest",875.0,"@","[company_name]",".com","guest875@[company_name].com"]
["guest",876.0,"@","[company_name]",".com","guest876@[company_name].com"]
["guest",877.0,"@","[company_name]",".com","guest877@[company_name].com"]
["guest",878.0,"@","[company_name]",".com","guest878@[company_name].com"]
["guest",879.0,"@","[company_name]",".com","guest879@[company_name].com"]
["guest",880.0,"@","[company_name]",".com","guest880@[company_name].com"]
["guest",881.0,"@","[company_name]",".com","guest881@[company_name].com"]
["guest",882.0,"@","[company_name]",".com","guest882@[company_name].com"]
["guest",883.0,"@","[company_name]",".com","guest883@[company_name].com"]
["guest",884.0,"@","[company_name]",".com","guest884@[company_name].com"]
["guest",885.0,"@","[company_name]",".com","guest885@[company_name].com"]
["guest",886.0,"@","[company_name]",".com","guest886@[company_name].com"]
["guest",887.0,"@","[company_name]",".com","guest887@[company_name].com"]
["guest",888.0,"@","[company_name]",".com","guest888@[company_name].com"]
["guest",889.0,"@","[company_name]",".com","guest889@[company_name].com"]
["guest",890.0,"@","[company_name]",".com","guest890@[company_name].com"]
["guest",891.0,"@","[company_name]",".com","guest891@[company_name].com"]
["guest",892.0,"@","[company_name]",".com","guest892@[company_name].com"]
["guest",893.0,"@","[company_name]",".com","guest893@[company_name].com"]
["guest",894.0,"@","[company_name]",".com","guest894@[company_name].com"]
["guest",895.0,"@","[company_name]",".com","guest895@[company_name].com"]
["guest",896.0,"@","[company_name]",".com","guest896@[company_name].com"]
["guest",897.0,"@","[company_name]",".com","guest897@[company_name].com"]
["guest",898.0,"@","[company_name]",".com","guest898@[company_name].com"]
["guest",899.0,"@","[company_name]",".com","guest899@[company_name].com"]
["guest",900.0,"@","[company_name]",".com","guest900@[company_name].com"]
["guest",901.0,"@","[company_name]",".com","guest901@[company_name].com"]
["guest",902.0,"@","[company_name]",".com","guest902@[company_name].com"]
["guest",903.0,"@","[company_name]",".com","guest903@[company_name].com"]
["guest",904.0,"@","[company_name]",".com","guest904@[company_name].com"]
["guest",905.0,"@","[company_name]",".com","guest905@[company_name].com"]
["guest",906.0,"@","[company_name]",".com","guest906@[company_name].com"]
["guest",907.0,"@","[company_name]",".com","guest907@[company_name].com"]
["guest",908.0,"@","[company_name]",".com","guest908@[company_name].com"]
["guest",909.0,"@","[company_name]",".com","guest909@[company_name].com"]
["guest",910.0,"@","[company_name]",".com","guest910@[company_name].com"]
["guest",911.0,"@","[company_name]",".com","guest911@[company_name].com"]
["guest",912.0,"@","[company_name]",".com","guest912@[company_name].com"]
["guest",913.0,"@","[company_name]",".com","guest913@[company_name].com"]
["guest",914.0,"@","[company_name]",".com","guest914@[company_name].com"]
["guest",915.0,"@","[company_name]",".com","guest915@[company_name].com"]
["guest",916.0,"@","[company_name]",".com","guest916@[company_name].com"]
["guest",917.0,"@","[company_name]",".com","guest917@[company_name].com"]
["guest",918.0,"@","[company_name]",".com","guest918@[company_name].com"]
["guest",919.0,"@","[company_name]",".com","guest919@[company_name].com"]
["guest",920.0,"@","[company_name]",".com","guest920@[company_name].com"]
["guest",921.0,"@","[company_name]",".com","guest921@[company_name].com"]
["guest",922.0,"@","[company_name]",".com","guest922@[company_name].com"]
["guest",923.0,"@","[company_name]",".com","guest923@[company_name].com"]
["guest",924.0,"@","[company_name]",".com","guest924@[company_name].com"]
["guest",925.0,"@","[company_name]",".com","guest925@[company_name].com"]
["guest",926.0,"@","[company_name]",".com","guest926@[company_name].com"]
["guest",927.0,"@","[company_name]",".com","guest927@[company_name].com"]
["guest",928.0,"@","[company_name]",".com","guest928@[company_name].com"]
["guest",929.0,"@","[company_name]",".com","guest929@[company_name].com"]
["guest",930.0,"@","[company_name]",".com","guest930@[company_name].com"]
["guest",931.0,"@","[company_name]",".com","guest931@[company_name].com"]
["guest",932.0,"@","[company_name]",".com","guest932@[company_name].com"]
["guest",933.0,"@","[company_name]",".com","guest933@[company_name].com"]
["guest",934.0,"@","[company_name]",".com","guest934@[company_name].com"]
["guest",935.0,"@","[company_name]",".com","guest935@[company_name].com"]
["guest",936.0,"@","[company_name]",".com","guest936@[company_name].com"]
["guest",937.0,"@","[company_name]",".com","guest937@[company_name].com"]
["guest",938.0,"@","[company_name]",".com","guest938@[company_name].com"]
["guest",939.0,"@","[company_name]",".com","guest939@[company_name].com"]
["guest",940.0,"@","[company_name]",".com","guest940@[company_name].com"]
["guest",941.0,"@","[company_name]",".com","guest941@[company_name].com"]
["guest",942.0,"@","[company_name]",".com","guest942@[company_name].com"]
["guest",943.0,"@","[company_name]",".com","guest943@[company_name].com"]
["guest",944.0,"@","[company_name]",".com","guest944@[company_name].com"]
["guest",945.0,"@","[company_name]",".com","guest945@[company_name].com"]
["guest",946.0,"@","[company_name]",".com","guest946@[company_name].com"]
["guest",947.0,"@","[company_name]",".com","guest947@[company_name].com"]
["guest",948.0,"@","[company_name]",".com","guest948@[company_name].com"]
["guest",949.0,"@","[company_name]",".com","guest949@[company_name].com"]
["guest",950.0,"@","[company_name]",".com","guest950@[company_name].com"]
["guest",951.0,"@","[company_name]",".com","guest951@[company_name].com"]
["guest",952.0,"@","[company_name]",".com","guest952@[company_name].com"]
["guest",953.0,"@","[company_name]",".com","guest953@[company_name].com"]
["guest",954.0,"@","[company_name]",".com","guest954@[company_name].com"]
["guest",955.0,"@","[company_name]",".com","guest955@[company_name].com"]
["guest",956.0,"@","[company_name]",".com","guest956@[company_name].com"]
["guest",957.0,"@","[company_name]",".com","guest957@[company_name].com"]
["guest",958.0,"@","[company_name]",".com","guest958@[company_name].com"]
["guest",959.0,"@","[company_name]",".com","guest959@[company_name].com"]
["guest",960.0,"@","[company_name]",".com","guest960@[company_name].com"]
["guest",961.0,"@","[company_name]",".com","guest961@[company_name].com"]
["guest",962.0,"@","[company_name]",".com","guest962@[company_name].com"]
["guest",963.0,"@","[company_name]",".com","guest963@[company_name].com"]
["guest",964.0,"@","[company_name]",".com","guest964@[company_name].com"]
["guest",965.0,"@","[company_name]",".com","guest965@[company_name].com"]
["guest",966.0,"@","[company_name]",".com","guest966@[company_name].com"]
["guest",967.0,"@","[company_name]",".com","guest967@[company_name].com"]
["guest",968.0,"@","[company_name]",".com","guest968@[company_name].com"]
["guest",969.0,"@","[company_name]",".com","guest969@[company_name].com"]
["guest",970.0,"@","[company_name]",".com","guest970@[company_name].com"]
["guest",971.0,"@","[company_name]",".com","guest971@[company_name].com"]
["guest",972.0,"@","[company_name]",".com","guest972@[company_name].com"]
["guest",973.0,"@","[company_name]",".com","guest973@[company_name].com"]
["guest",974.0,"@","[company_name]",".com","guest974@[company_name].com"]
["guest",975.0,"@","[company_name]",".com","guest975@[company_name].com"]
["guest",976.0,"@","[company_name]",".com","guest976@[company_name].com"]
["guest",977.0,"@","[company_name]",".com","guest977@[company_name].com"]
["guest",978.0,"@","[company_name]",".com","guest978@[company_name].com"]
["guest",979.0,"@","[company_name]",".com","guest979@[company_name].com"]
["guest",980.0,"@","[company_name]",".com","guest980@[company_name].com"]
["guest",981.0,"@","[company_name]",".com","guest981@[company_name].com"]
["guest",982.0,"@","[company_name]",".com","guest982@[company_name].com"]
["guest",983.0,"@","[company_name]",".com","guest983@[company_name].com"]
["guest",984.0,"@","[company_name]",".com","guest984@[company_name].com"]
["guest",985.0,"@","[company_name]",".com","guest985@[company_name].com"]
["guest",986.0,"@","[company_name]",".com","guest986@[company_name].com"]
["guest",987.0,"@","[company_name]",".com","guest987@[company_name].com"]
["guest",988.0,"@","[company_name]",".com","guest988@[company_name].com"]
["guest",989.0,"@","[company_name]",".com","guest989@[company_name].com"]
["guest",990.0,"@","[company_name]",".com","guest990@[company_name].com"]
["guest",991.0,"@","[company_name]",".com","guest991@[company_name].com"]
["guest",992.0,"@","[company_name]",".com","guest992@[company_name].com"]
["guest",993.0,"@","[company_name]",".com","guest993@[company_name].com"]
["guest",994.0,"@","[company_name]",".com","guest994@[company_name].com"]
["guest",995.0,"@","[company_name]",".com","guest995@[company_name].com"]
["guest",996.0,"@","[company_name]",".com","guest996@[company_name].com"]
["guest",997.0,"@","[company_name]",".com","guest997@[company_name].com"]
["guest",998.0,"@","[company_name]",".com","guest998@[company_name].com"]